[Event "44th Chess Olympiad Open 2022"]
[Site "Chennai"]
[Date "2022.08.08"]
[Round "10.55"]
[White "Cabezas Solano, David Alejandro"]
[Black "Giasi, Viresh"]
[Result "1-0"]
[WhiteElo "2196"]
[BlackElo "2006"]
[Annotator "NA RC"]
[PlyCount "119"]
[EventDate "2022.??.??"]
[TimeControl "60"]

1. d4 {[%emt 0:00:06]} d5 {[%emt 0:00:48]} 2. Nf3 {[%emt 0:00:10]} Nf6 {
[%emt 0:00:51]} 3. g3 {[%emt 0:00:06]} Nbd7 {[%emt 0:05:54]} 4. Bg2 {[%emt 0:
00:00]} e6 {[%emt 0:00:19]} 5. O-O {[%emt 0:00:06]} Bd6 {[%emt 0:00:21]} 6. c4
{[%emt 0:00:16]} dxc4 {[%emt 0:03:07]} 7. Nbd2 {[%emt 0:00:47]} Nb6 {[%emt 0:
00:00]} 8. e4 {[%emt 0:04:55]} Bb4 {[%emt 0:01:40]} 9. Nxc4 {[%emt 0:03:03]}
Nxe4 {[%emt 0:05:14]} 10. Nxb6 {[%emt 0:00:32]} axb6 {[%emt 0:00:14]} 11. Qe2 {
[%emt 0:00:32]} Nd6 {[%emt 0:03:19]} 12. Bg5 {[%emt 0:02:03]} f6 {[%emt 0:00:
00]} 13. Bf4 {[%emt 0:01:23]} b5 {[%emt 0:00:25]} 14. a3 {[%emt 0:07:35]} Ba5 {
[%emt 0:00:09]} 15. Bxd6 {[%emt 0:01:08]} Qxd6 {[%emt 0:01:19]} 16. Qxb5+ {
[%emt 0:00:07]} Qd7 {[%emt 0:07:52]} 17. Qc4 {[%emt 0:06:46]} O-O {[%emt 0:00:
00]} 18. b4 {[%emt 0:01:07]} Bb6 {[%emt 0:01:04]} 19. Rfe1 {[%emt 0:02:43]} Qd5
{[%emt 0:08:59]} 20. Qc2 {[%emt 0:03:27]} Qh5 {[%emt 0:10:26]} 21. a4 {[%emt 0:
00:00]} Bd7 {[%emt 0:17:37]} 22. a5 {[%emt 0:04:07]} Ba7 {[%emt 0:00:05]} 23.
Qxc7 {[%emt 0:14:20]} Bc6 {[%emt 0:00:05]} 24. Qf4 {[%emt 0:01:06]} e5 {
[%emt 0:00:53]} 25. Qe3 {[%emt 0:15:16]} exd4 {[%emt 0:04:26]} 26. Qd3 {
[%emt 0:02:44]} Rfe8 {[%emt 0:06:59]} 27. Rab1 {[%emt 0:04:43]} Bb5 {[%emt 0:
00:00]} 28. Qb3+ {[%emt 0:00:17]} Kf8 {[%emt 0:01:03]} 29. Nd2 {[%emt 0:01:45]}
Rxe1+ {[%emt 0:00:29]} 30. Rxe1 {[%emt 0:00:03]} Re8 {[%emt 0:00:05]} 31. Rxe8+
{[%emt 0:09:17]} Qxe8 {[%emt 0:00:02]} 32. Be4 {[%emt 0:00:24]} Qc8 {[%emt 0:
00:00]} 33. Qd5 {[%emt 0:03:55]} Qc1+ {[%emt 0:02:14]} 34. Kg2 {[%emt 0:00:02]}
Bc6 {[%emt 0:01:22]} 35. Qd6+ {[%emt 0:00:45]} Kf7 {[%emt 0:00:08]} 36. Bd5+ {
[%emt 0:00:47]} Kg6 {[%emt 0:01:03]} 37. Nf3 {[%emt 0:00:40]} Bxd5 {[%emt 0:00:
00]} 38. Qxd5 {[%emt 0:00:02]} Qc6 {[%emt 0:00:28]} 39. Nh4+ {[%emt 0:00:43]}
Kh6 {[%emt 0:00:05]} 40. Nf5+ {[%emt 0:00:04]} Kh5 {[%emt 0:00:37]} 41. Qxc6 {
[%emt 0:31:16]} bxc6 {[%emt 0:30:04]} 42. Kf3 {[%emt 0:01:15]} d3 {[%emt 0:00:
00]} 43. Ne7 {[%emt 0:00:00]} d2 {[%emt 0:00:00]} 44. Ke2 {[%emt 0:00:00]} Bxf2
{[%emt 0:00:00]} 45. Nxc6 {[%emt 0:00:00]} Kg4 {[%emt 0:00:00]} 46. b5 {
[%emt 0:00:00]} Bg1 {[%emt 0:00:00]} 47. a6 {[%emt 0:00:00]} Kf5 {[%emt 0:00:
00]} 48. a7 {[%emt 0:00:00]} Bxa7 {[%emt 0:00:00]} 49. Nxa7 {[%emt 0:00:00]}
Ke6 {[%emt 0:00:00]} 50. b6 {[%emt 0:00:00]} Kd7 {[%emt 0:00:00]} 51. Kxd2 {
[%emt 0:00:00]} h5 {[%emt 0:00:00]} 52. Kd3 {[%emt 0:00:00]} f5 {[%emt 0:00:00]
} 53. h4 {[%emt 0:00:00]} g6 {[%emt 0:00:00]} 54. Kd4 {[%emt 0:00:00]} Kd6 {
[%emt 0:00:00]} 55. Nc8+ {[%emt 0:00:00]} Kd7 {[%emt 0:00:00]} 56. b7 {[%emt 0:
00:00]} Kc7 {[%emt 0:00:00]} 57. Nd6 {[%emt 0:00:00]} g5 {[%emt 0:00:00]} 58.
hxg5 {[%emt 0:00:00]} f4 {[%emt 0:00:00]} 59. gxf4 {[%emt 0:00:00]} h4 {
[%emt 0:00:00]} 60. Ke4 {[%emt 0:00:00]} 1-0

[Event "44th Chess Olympiad Open 2022"]
[Site "Chennai"]
[Date "2022.08.08"]
[Round "10.55"]
[White "Sanches, Casanova Romario"]
[Black "Chaves Sanchez, Gabriel A"]
[Result "0-1"]
[WhiteElo "2066"]
[BlackElo "2125"]
[Annotator "NA RC"]
[PlyCount "68"]
[EventDate "2022.??.??"]
[TimeControl "60"]

1. e4 {[%emt 0:00:03]} e5 {[%emt 0:00:09]} 2. Bc4 {[%emt 0:00:10]} Nf6 {
[%emt 0:00:10]} 3. d3 {[%emt 0:00:05]} Bc5 {[%emt 0:01:09]} 4. Nc3 {[%emt 0:00:
00]} O-O {[%emt 0:00:50]} 5. f4 {[%emt 0:07:26]} d5 {[%emt 0:00:52]} 6. Nxd5 {
[%emt 0:08:00]} Be6 {[%emt 0:00:06]} 7. fxe5 {[%emt 0:19:58]} Nxd5 {[%emt 0:00:
00]} 8. exd5 {[%emt 0:10:26]} Bxd5 {[%emt 0:00:09]} 9. Bxd5 {[%emt 0:02:22]}
Qxd5 {[%emt 0:00:06]} 10. Nf3 {[%emt 0:00:56]} Nc6 {[%emt 0:04:50]} 11. Bf4 {
[%emt 0:06:03]} f6 {[%emt 0:07:55]} 12. c4 {[%emt 0:12:53]} Qd7 {[%emt 0:08:35]
} 13. Qe2 {[%emt 0:02:23]} fxe5 {[%emt 0:01:39]} 14. Be3 {[%emt 0:05:11]} Bb4+
{[%emt 0:04:42]} 15. Bd2 {[%emt 0:04:09]} Nd4 {[%emt 0:04:18]} 16. Nxd4 {
[%emt 0:03:11]} Bxd2+ {[%emt 0:00:26]} 17. Qxd2 {[%emt 0:02:30]} Qxd4 {[%emt 0:
00:00]} 18. O-O-O {[%emt 0:00:16]} Rf2 {[%emt 0:00:13]} 19. Qb4 {[%emt 0:00:33]
} b6 {[%emt 0:01:25]} 20. Rhe1 {[%emt 0:04:49]} c5 {[%emt 0:00:35]} 21. Qb5 {
[%emt 0:03:04]} Raf8 {[%emt 0:02:25]} 22. Re4 {[%emt 0:01:20]} Qd6 {[%emt 0:00:
00]} 23. Rg4 {[%emt 0:03:22]} Re2 {[%emt 0:00:09]} 24. h3 {[%emt 0:01:20]} Qh6+
{[%emt 0:07:28]} 25. Kb1 {[%emt 0:00:04]} Qd6 {[%emt 0:01:14]} 26. Kc1 {
[%emt 0:00:56]} h6 {[%emt 0:00:24]} 27. Rd2 {[%emt 0:01:06]} Re1+ {[%emt 0:00:
00]} 28. Kc2 {[%emt 0:00:08]} Kh7 {[%emt 0:00:15]} 29. a3 {[%emt 0:01:17]} Rd8
{[%emt 0:00:54]} 30. b4 {[%emt 0:00:35]} Re2 {[%emt 0:01:07]} 31. Rg3 {[%emt 0:
00:00]} Rxd2+ {[%emt 0:00:23]} 32. Kxd2 {[%emt 0:00:09]} e4 {[%emt 0:00:17]}
33. Re3 {[%emt 0:00:28]} Qf4 {[%emt 0:03:19]} 34. Qc6 {[%emt 0:00:45]} Rxd3+ {
[%emt 0:00:00]} 0-1

[Event "44th Chess Olympiad Open 2022"]
[Site "Chennai"]
[Date "2022.08.08"]
[Round "10.55"]
[White "Gajadin, Dewperkash"]
[Black "Arias Santana, Mauricio"]
[Result "0-1"]
[WhiteElo "1990"]
[BlackElo "2318"]
[Annotator "RC"]
[PlyCount "46"]
[EventDate "2022.??.??"]
[TimeControl "60"]

1. e4 {[%emt 0:00:13]} e5 {[%emt 0:00:02]} 2. Nf3 {[%emt 0:00:08]} Nc6 {
[%emt 0:00:02]} 3. Bc4 {[%emt 0:00:20]} Nf6 {[%emt 0:00:03]} 4. d3 {[%emt 0:00:
00]} Bc5 {[%emt 0:00:04]} 5. c3 {[%emt 0:00:07]} d6 {[%emt 0:00:04]} 6. O-O {
[%emt 0:02:02]} a5 {[%emt 0:02:43]} 7. d4 {[%emt 0:01:27]} Ba7 {[%emt 0:01:22]}
8. dxe5 {[%emt 0:10:03]} Nxe5 {[%emt 0:00:02]} 9. Nxe5 {[%emt 0:00:28]} dxe5 {
[%emt 0:00:01]} 10. Qb3 {[%emt 0:24:00]} O-O {[%emt 0:02:57]} 11. Bg5 {[%emt 0:
00:00]} h6 {[%emt 0:21:52]} 12. Bh4 {[%emt 0:07:39]} Qe7 {[%emt 0:03:50]} 13.
Nd2 {[%emt 0:08:10]} g5 {[%emt 0:00:27]} 14. Bg3 {[%emt 0:00:11]} Nh5 {[%emt 0:
00:00]} 15. Nf3 {[%emt 0:01:56]} Nxg3 {[%emt 0:00:44]} 16. hxg3 {[%emt 0:00:02]
} Kg7 {[%emt 0:00:42]} 17. Rad1 {[%emt 0:02:34]} c6 {[%emt 0:01:09]} 18. Rd2 {
[%emt 0:02:13]} h5 {[%emt 0:08:17]} 19. Kh2 {[%emt 0:06:26]} Rh8 {[%emt 0:00:
00]} 20. Nxe5 {[%emt 0:15:18]} Qxe5 {[%emt 0:16:41]} 21. f4 {[%emt 0:01:00]}
gxf4 {[%emt 0:00:08]} 22. gxf4 {[%emt 0:00:49]} Qe7 {[%emt 0:00:08]} 23. e5 {
[%emt 0:01:00]} Qh4# {[%emt 0:01:44]} 0-1

[Event "44th Chess Olympiad Open 2022"]
[Site "Chennai"]
[Date "2022.08.08"]
[Round "10.56"]
[White "Kojima, Shinya"]
[Black "Al-Sulaiti, Ghanem"]
[Result "1-0"]
[WhiteElo "2346"]
[BlackElo "2183"]
[Annotator "RC"]
[PlyCount "67"]
[EventDate "2022.??.??"]
[TimeControl "60"]

1. e4 {[%emt 0:00:06]} c5 {[%emt 0:00:05]} 2. Nf3 {[%emt 0:00:05]} Nc6 {
[%emt 0:00:09]} 3. Bb5 {[%emt 0:00:07]} g6 {[%emt 0:00:05]} 4. O-O {[%emt 0:00:
00]} Bg7 {[%emt 0:00:10]} 5. c3 {[%emt 0:00:07]} Nf6 {[%emt 0:00:09]} 6. Re1 {
[%emt 0:00:06]} O-O {[%emt 0:00:09]} 7. d4 {[%emt 0:00:05]} d5 {[%emt 0:00:13]}
8. e5 {[%emt 0:00:12]} Ne4 {[%emt 0:01:20]} 9. Bxc6 {[%emt 0:00:36]} bxc6 {
[%emt 0:00:17]} 10. Be3 {[%emt 0:00:03]} cxd4 {[%emt 0:05:22]} 11. cxd4 {
[%emt 0:00:06]} f6 {[%emt 0:03:01]} 12. Nbd2 {[%emt 0:00:22]} Bg4 {[%emt 0:00:
00]} 13. Qa4 {[%emt 0:26:58]} Nxd2 {[%emt 0:08:45]} 14. Nxd2 {[%emt 0:00:49]}
fxe5 {[%emt 0:00:05]} 15. dxe5 {[%emt 0:00:14]} Bd7 {[%emt 0:00:05]} 16. Bc5 {
[%emt 0:02:02]} Rf5 {[%emt 0:04:27]} 17. Nf3 {[%emt 0:06:16]} Qc7 {[%emt 0:00:
00]} 18. Bxe7 {[%emt 0:06:28]} Bxe5 {[%emt 0:01:18]} 19. Nxe5 {[%emt 0:00:59]}
Rxe5 {[%emt 0:00:17]} 20. Qd4 {[%emt 0:01:38]} Rf5 {[%emt 0:00:20]} 21. g3 {
[%emt 0:05:21]} Rf7 {[%emt 0:04:24]} 22. Bb4 {[%emt 0:02:49]} h5 {[%emt 0:00:
00]} 23. Re5 {[%emt 0:06:35]} Bf5 {[%emt 0:02:54]} 24. Rae1 {[%emt 0:03:10]}
Be4 {[%emt 0:00:21]} 25. f3 {[%emt 0:05:08]} Rxf3 {[%emt 0:02:32]} 26. R1xe4 {
[%emt 0:01:46]} dxe4 {[%emt 0:00:52]} 27. Re7 {[%emt 0:01:16]} Rxg3+ {[%emt 0:
00:00]} 28. Kh1 {[%emt 0:00:30]} Qxe7 {[%emt 0:00:17]} 29. Bxe7 {[%emt 0:00:08]
} Rg4 {[%emt 0:00:28]} 30. Qc4+ {[%emt 0:00:36]} Kg7 {[%emt 0:00:48]} 31. Qxc6
{[%emt 0:00:52]} Rg8 {[%emt 0:02:27]} 32. Qf6+ {[%emt 0:02:21]} Kh7 {[%emt 0:
00:00]} 33. Bb4 {[%emt 0:01:49]} g5 {[%emt 0:01:47]} 34. Qf7+ {[%emt 0:00:10]}
1-0

[Event "44th Chess Olympiad Open 2022"]
[Site "Chennai"]
[Date "2022.08.08"]
[Round "10.56"]
[White "Kobayashi, Atsuhiko"]
[Black "Erfan Mohamad Firdaus"]
[Result "1-0"]
[WhiteElo "2156"]
[BlackElo "1294"]
[Annotator "NA RC"]
[PlyCount "111"]
[EventDate "2022.??.??"]
[TimeControl "60"]

1. Nf3 {[%emt 0:00:04]} Nf6 {[%emt 0:00:20]} 2. c4 {[%emt 0:00:08]} g6 {
[%emt 0:00:16]} 3. Nc3 {[%emt 0:00:10]} d5 {[%emt 0:00:42]} 4. cxd5 {[%emt 0:
00:00]} Nxd5 {[%emt 0:00:21]} 5. Qb3 {[%emt 0:01:06]} e6 {[%emt 0:03:46]} 6. e4
{[%emt 0:00:35]} Nxc3 {[%emt 0:05:06]} 7. Qxc3 {[%emt 0:00:10]} Rg8 {[%emt 0:
00:00]} 8. d4 {[%emt 0:00:09]} Nd7 {[%emt 0:03:56]} 9. Bc4 {[%emt 0:02:33]} Bg7
{[%emt 0:04:03]} 10. Bg5 {[%emt 0:00:37]} Bf6 {[%emt 0:00:33]} 11. Bxf6 {
[%emt 0:01:22]} Qxf6 {[%emt 0:02:18]} 12. O-O {[%emt 0:00:52]} Kf8 {[%emt 0:00:
00]} 13. e5 {[%emt 0:02:33]} Qe7 {[%emt 0:01:08]} 14. d5 {[%emt 0:00:46]} Kg7 {
[%emt 0:05:19]} 15. dxe6 {[%emt 0:01:08]} fxe6 {[%emt 0:00:19]} 16. Rad1 {
[%emt 0:02:42]} Nb6 {[%emt 0:03:20]} 17. Bb3 {[%emt 0:00:13]} a5 {[%emt 0:00:
00]} 18. a3 {[%emt 0:02:04]} a4 {[%emt 0:04:01]} 19. Ba2 {[%emt 0:00:10]} c6 {
[%emt 0:04:39]} 20. Rd4 {[%emt 0:01:05]} Nd5 {[%emt 0:00:26]} 21. Qc2 {[%emt 0:
00:00]} b5 {[%emt 0:01:39]} 22. Qxc6 {[%emt 0:00:51]} Bb7 {[%emt 0:00:19]} 23.
Qxb5 {[%emt 0:00:21]} Ba6 {[%emt 0:00:26]} 24. Qc6 {[%emt 0:02:33]} Rgc8 {
[%emt 0:01:03]} 25. Bxd5 {[%emt 0:06:55]} Bxf1 {[%emt 0:28:51]} 26. Qxa8 {
[%emt 0:03:54]} Rxa8 {[%emt 0:03:09]} 27. Bxa8 {[%emt 0:00:07]} Bb5 {[%emt 0:
00:00]} 28. h4 {[%emt 0:03:36]} h6 {[%emt 0:05:24]} 29. Rd6 {[%emt 0:03:00]}
Qe8 {[%emt 0:06:08]} 30. Bb7 {[%emt 0:04:27]} Qb8 {[%emt 0:01:05]} 31. Rb6 {
[%emt 0:03:39]} Bc6 {[%emt 0:02:48]} 32. Rxc6 {[%emt 0:00:33]} Qxb7 {[%emt 0:
00:00]} 33. Rc4 {[%emt 0:01:32]} Qd5 {[%emt 0:02:22]} 34. Rd4 {[%emt 0:01:26]}
Qb5 {[%emt 0:00:53]} 35. g3 {[%emt 0:03:42]} Qc6 {[%emt 0:01:36]} 36. Kg2 {
[%emt 0:00:24]} g5 {[%emt 0:01:15]} 37. hxg5 {[%emt 0:00:11]} hxg5 {[%emt 0:00:
00]} 38. Rg4 {[%emt 0:00:23]} Kh6 {[%emt 0:01:14]} 39. Rxg5 {[%emt 0:00:19]}
Qe4 {[%emt 0:00:56]} 40. Rg8 {[%emt 0:00:38]} Qb7 {[%emt 0:00:36]} 41. Rg4 {
[%emt 0:30:21]} Qc6 {[%emt 0:02:39]} 42. Rf4 {[%emt 0:00:00]} Kg7 {[%emt 0:00:
00]} 43. g4 {[%emt 0:00:00]} Qc2 {[%emt 0:04:26]} 44. Rb4 {[%emt 0:00:00]} Kg6
{[%emt 0:00:48]} 45. Kg3 {[%emt 0:00:00]} Qd1 {[%emt 0:01:42]} 46. Rb7 {
[%emt 0:00:00]} Qc1 {[%emt 0:01:20]} 47. Nh4+ {[%emt 0:00:00]} Kg5 {[%emt 0:00:
00]} 48. Nf3+ {[%emt 0:00:00]} Kg6 {[%emt 0:00:10]} 49. Ra7 {[%emt 0:00:00]}
Qc2 {[%emt 0:00:58]} 50. Ra6 {[%emt 0:00:00]} Qxb2 {[%emt 0:00:33]} 51. Rxa4 {
[%emt 0:00:00]} Qb5 {[%emt 0:04:50]} 52. Rf4 {[%emt 0:00:00]} Qd5 {[%emt 0:00:
00]} 53. a4 {[%emt 0:00:00]} Qa5 {[%emt 0:01:05]} 54. Rf6+ {[%emt 0:00:00]} Kg7
{[%emt 0:00:09]} 55. Rxe6 {[%emt 0:00:00]} Qxa4 {[%emt 0:00:50]} 56. Rf6 {
[%emt 0:00:00]} 1-0

[Event "44th Chess Olympiad Open 2022"]
[Site "Chennai"]
[Date "2022.08.08"]
[Round "10.56"]
[White "Al-Homaid, Abdulla"]
[Black "Averbukh, Alex"]
[Result "0-1"]
[WhiteElo "1358"]
[BlackElo "2155"]
[Annotator "NA RC"]
[PlyCount "72"]
[EventDate "2022.??.??"]
[TimeControl "60"]

1. e4 {[%emt 0:00:03]} c6 {[%emt 0:00:08]} 2. d4 {[%emt 0:00:29]} d5 {[%emt 0:
00:00]} 3. Nc3 {[%emt 0:01:09]} dxe4 {[%emt 0:00:21]} 4. Nxe4 {[%emt 0:00:18]}
Nd7 {[%emt 0:00:37]} 5. Nf3 {[%emt 0:03:52]} Ngf6 {[%emt 0:00:07]} 6. Nxf6+ {
[%emt 0:01:34]} Nxf6 {[%emt 0:00:08]} 7. c3 {[%emt 0:00:53]} Bg4 {[%emt 0:00:
00]} 8. Be2 {[%emt 0:01:12]} e6 {[%emt 0:01:32]} 9. O-O {[%emt 0:01:14]} Bd6 {
[%emt 0:00:39]} 10. Bg5 {[%emt 0:03:53]} h6 {[%emt 0:00:33]} 11. Bh4 {[%emt 0:
00:00]} Qc7 {[%emt 0:00:46]} 12. Ne5 {[%emt 0:11:06]} Bf5 {[%emt 0:01:03]} 13.
Bg3 {[%emt 0:09:09]} Ne4 {[%emt 0:02:05]} 14. Nc4 {[%emt 0:02:52]} Nxg3 {
[%emt 0:00:42]} 15. Nxd6+ {[%emt 0:00:19]} Qxd6 {[%emt 0:00:09]} 16. hxg3 {
[%emt 0:00:30]} O-O-O {[%emt 0:00:46]} 17. Bd3 {[%emt 0:10:00]} g6 {[%emt 0:00:
00]} 18. Qf3 {[%emt 0:06:18]} h5 {[%emt 0:01:04]} 19. Bxf5 {[%emt 0:05:19]}
gxf5 {[%emt 0:00:08]} 20. Qf4 {[%emt 0:18:16]} Qe7 {[%emt 0:04:07]} 21. Qh4 {
[%emt 0:02:16]} Qd7 {[%emt 0:00:31]} 22. a4 {[%emt 0:02:51]} Rdg8 {[%emt 0:00:
00]} 23. f3 {[%emt 0:00:37]} Rg6 {[%emt 0:00:54]} 24. Qf4 {[%emt 0:01:04]} Rhg8
{[%emt 0:04:32]} 25. Kf2 {[%emt 0:01:38]} Qd8 {[%emt 0:18:05]} 26. Rh1 {
[%emt 0:07:01]} Qb6 {[%emt 0:09:38]} 27. b4 {[%emt 0:01:13]} Rg5 {[%emt 0:00:
00]} 28. Qd6 {[%emt 0:03:16]} Qc7 {[%emt 0:06:49]} 29. Qxc7+ {[%emt 0:00:29]}
Kxc7 {[%emt 0:00:01]} 30. Rag1 {[%emt 0:01:08]} Kd6 {[%emt 0:00:49]} 31. Ke3 {
[%emt 0:03:09]} f6 {[%emt 0:05:22]} 32. Rh4 {[%emt 0:00:51]} e5 {[%emt 0:00:54]
} 33. Kd3 {[%emt 0:00:49]} Rxg3 {[%emt 0:01:16]} 34. Rxh5 {[%emt 0:01:17]} e4+
{[%emt 0:00:32]} 35. Kd2 {[%emt 0:00:23]} exf3 {[%emt 0:00:14]} 36. Rxf5 {
[%emt 0:00:23]} Rxg2+ {[%emt 0:34:05]} 0-1

[Event "44th Chess Olympiad Open 2022"]
[Site "Chennai"]
[Date "2022.08.08"]
[Round "10.57"]
[White "Sanchez Alvarez, Roberto Carlos"]
[Black "Beukes, Dante M"]
[Result "1/2-1/2"]
[WhiteElo "2431"]
[BlackElo "2234"]
[Annotator "RC"]
[PlyCount "88"]
[EventDate "2022.??.??"]
[TimeControl "60"]

1. d4 {[%emt 0:00:03]} Nf6 {[%emt 0:00:09]} 2. c4 {[%emt 0:00:08]} g6 {[%emt 0:
00:00]} 3. Nc3 {[%emt 0:00:08]} Bg7 {[%emt 0:00:05]} 4. e4 {[%emt 0:00:09]} d6
{[%emt 0:00:05]} 5. f3 {[%emt 0:00:06]} O-O {[%emt 0:00:27]} 6. Be3 {[%emt 0:
00:00]} c5 {[%emt 0:00:10]} 7. Nge2 {[%emt 0:00:07]} Qa5 {[%emt 0:00:06]} 8.
Nc1 {[%emt 0:00:08]} cxd4 {[%emt 0:02:27]} 9. Nb3 {[%emt 0:00:12]} Qb6 {
[%emt 0:02:06]} 10. Bxd4 {[%emt 0:02:04]} Qd8 {[%emt 0:01:31]} 11. Qd2 {
[%emt 0:17:51]} Nc6 {[%emt 0:03:51]} 12. Be3 {[%emt 0:00:09]} Be6 {[%emt 0:00:
00]} 13. Nd5 {[%emt 0:14:35]} Nd7 {[%emt 0:07:03]} 14. Be2 {[%emt 0:00:16]} a5
{[%emt 0:00:58]} 15. a4 {[%emt 0:03:34]} b6 {[%emt 0:21:07]} 16. O-O {[%emt 0:
00:00]} Nc5 {[%emt 0:02:14]} 17. Ra3 {[%emt 0:00:50]} Bd7 {[%emt 0:05:56]} 18.
Rb1 {[%emt 0:08:23]} Rb8 {[%emt 0:09:29]} 19. Bf1 {[%emt 0:05:45]} Ne5 {
[%emt 0:07:26]} 20. Nc3 {[%emt 0:13:08]} Be6 {[%emt 0:00:33]} 21. Nd5 {[%emt 0:
00:00]} Bd7 {[%emt 0:01:05]} 22. Be2 {[%emt 0:06:16]} Bc6 {[%emt 0:05:09]} 23.
Nd4 {[%emt 0:01:24]} Ba8 {[%emt 0:09:06]} 24. b4 {[%emt 0:08:24]} axb4 {
[%emt 0:01:21]} 25. Rxb4 {[%emt 0:00:02]} e6 {[%emt 0:01:43]} 26. Nc3 {[%emt 0:
00:00]} Nc6 {[%emt 0:00:15]} 27. Rb1 {[%emt 0:02:36]} Nxd4 {[%emt 0:02:00]} 28.
Bxd4 {[%emt 0:00:04]} Bxd4+ {[%emt 0:00:12]} 29. Qxd4 {[%emt 0:00:07]} Qe7 {
[%emt 0:00:08]} 30. Nb5 {[%emt 0:06:26]} Rfd8 {[%emt 0:00:26]} 31. a5 {[%emt 0:
00:00]} d5 {[%emt 0:01:24]} 32. exd5 {[%emt 0:02:38]} bxa5 {[%emt 0:01:09]} 33.
Qe3 {[%emt 0:01:00]} Qf8 {[%emt 0:00:30]} 34. dxe6 {[%emt 0:00:19]} Nxe6 {
[%emt 0:00:09]} 35. Rxa5 {[%emt 0:00:04]} Nd4 {[%emt 0:00:59]} 36. Bf1 {
[%emt 0:00:40]} Nc6 {[%emt 0:00:34]} 37. Raa1 {[%emt 0:00:23]} Ne7 {[%emt 0:00:
00]} 38. Bd3 {[%emt 0:00:31]} h5 {[%emt 0:00:34]} 39. Re1 {[%emt 0:00:13]} Nc6
{[%emt 0:00:51]} 40. Be4 {[%emt 0:00:01]} Ne5 {[%emt 0:00:40]} 41. Rxa8 {
[%emt 0:12:06]} Rxa8 {[%emt 0:05:39]} 42. Bxa8 {[%emt 0:00:07]} Nxc4 {[%emt 0:
00:00]} 43. Qe7 {[%emt 0:16:56]} Rxa8 {[%emt 0:02:08]} 44. Qxf8+ {[%emt 0:00:
00]} Kxf8 {[%emt 0:00:10]} 1/2-1/2

[Event "44th Chess Olympiad Open 2022"]
[Site "Chennai"]
[Date "2022.08.08"]
[Round "10.57"]
[White "Ramos Espinoza, Efren Andres"]
[Black "Uapingene, Uatiavi Jossy"]
[Result "1-0"]
[WhiteElo "2158"]
[BlackElo "1798"]
[Annotator "NA RC"]
[PlyCount "101"]
[EventDate "2022.??.??"]
[TimeControl "60"]

1. d4 {[%emt 0:00:03]} Nf6 {[%emt 0:00:33]} 2. Nf3 {[%emt 0:00:14]} e6 {
[%emt 0:00:41]} 3. c4 {[%emt 0:01:06]} Bb4+ {[%emt 0:00:32]} 4. Bd2 {[%emt 0:
00:00]} Qe7 {[%emt 0:00:06]} 5. a3 {[%emt 0:03:19]} Bxd2+ {[%emt 0:01:09]} 6.
Qxd2 {[%emt 0:00:16]} Ne4 {[%emt 0:00:53]} 7. Qd3 {[%emt 0:00:39]} f5 {[%emt 0:
00:00]} 8. Nc3 {[%emt 0:00:19]} Nxc3 {[%emt 0:00:54]} 9. bxc3 {[%emt 0:00:17]}
O-O {[%emt 0:06:36]} 10. e4 {[%emt 0:00:17]} b6 {[%emt 0:00:07]} 11. Qc2 {
[%emt 0:01:31]} Nc6 {[%emt 0:09:54]} 12. Bd3 {[%emt 0:00:17]} Ba6 {[%emt 0:00:
00]} 13. O-O {[%emt 0:00:35]} Qf6 {[%emt 0:06:46]} 14. exf5 {[%emt 0:02:12]}
exf5 {[%emt 0:00:09]} 15. Qa4 {[%emt 0:04:53]} Bb7 {[%emt 0:03:03]} 16. Rfe1 {
[%emt 0:06:37]} d6 {[%emt 0:04:40]} 17. Bf1 {[%emt 0:07:16]} Rad8 {[%emt 0:00:
00]} 18. c5 {[%emt 0:01:04]} Na5 {[%emt 0:00:53]} 19. Bc4+ {[%emt 0:00:37]}
Nxc4 {[%emt 0:00:56]} 20. Qxc4+ {[%emt 0:00:04]} d5 {[%emt 0:00:22]} 21. Qa4 {
[%emt 0:00:20]} Qc6 {[%emt 0:05:07]} 22. Qxc6 {[%emt 0:01:55]} Bxc6 {[%emt 0:
00:00]} 23. Re7 {[%emt 0:00:19]} Rc8 {[%emt 0:09:18]} 24. Ne5 {[%emt 0:00:57]}
Rf6 {[%emt 0:00:36]} 25. Re1 {[%emt 0:04:24]} bxc5 {[%emt 0:03:59]} 26. dxc5 {
[%emt 0:00:28]} Kf8 {[%emt 0:00:20]} 27. Nd7+ {[%emt 0:03:46]} Bxd7 {[%emt 0:
00:00]} 28. Rxd7 {[%emt 0:00:04]} Ra6 {[%emt 0:04:31]} 29. Rxd5 {[%emt 0:00:17]
} g6 {[%emt 0:00:05]} 30. Rd7 {[%emt 0:01:50]} Rxa3 {[%emt 0:05:14]} 31. h4 {
[%emt 0:04:10]} Rxc3 {[%emt 0:01:00]} 32. Rxh7 {[%emt 0:03:31]} Kg8 {[%emt 0:
00:00]} 33. Ree7 {[%emt 0:00:09]} Rxc5 {[%emt 0:08:41]} 34. Reg7+ {[%emt 0:00:
00]} Kf8 {[%emt 0:00:06]} 35. Rxg6 {[%emt 0:00:15]} Rb8 {[%emt 0:01:09]} 36.
Ra6 {[%emt 0:03:29]} Rb7 {[%emt 0:03:45]} 37. h5 {[%emt 0:00:44]} Kg8 {[%emt 0:
00:00]} 38. Rd7 {[%emt 0:00:27]} f4 {[%emt 0:03:04]} 39. Rg6+ {[%emt 0:06:48]}
Kf8 {[%emt 0:06:08]} 40. Rh6 {[%emt 0:25:09]} Ke8 {[%emt 0:05:22]} 41. Rg7 {
[%emt 0:30:32]} Kf8 {[%emt 0:30:24]} 42. Rg4 {[%emt 0:01:07]} Rf5 {[%emt 0:00:
00]} 43. Kf1 {[%emt 0:07:15]} a5 {[%emt 0:00:00]} 44. Rh8+ {[%emt 0:00:00]} Kf7
{[%emt 0:00:00]} 45. h6 {[%emt 0:00:00]} Rb1+ {[%emt 0:00:00]} 46. Ke2 {
[%emt 0:00:00]} f3+ {[%emt 0:00:00]} 47. gxf3 {[%emt 0:00:00]} Rb2+ {[%emt 0:
00:00]} 48. Ke3 {[%emt 0:00:00]} Rb3+ {[%emt 0:00:00]} 49. Ke4 {[%emt 0:00:00]}
Rbxf3 {[%emt 0:00:00]} 50. h7 {[%emt 0:00:00]} Rxf2 {[%emt 0:00:00]} 51. Rc8 {
[%emt 0:00:00]} 1-0